fUST/lending_fUST_20250523
["ID","MTS","AMOUNT","RATE_DAILY","PERIOD"]
[362063151,1747962642054,-985.03233236,0.00019178,2]
[362063152,1747962642063,-985.03233236,0.00019178,2]
[362063153,1747962642073,-985.03233236,0.00019178,2]
[362063154,1747962642082,-985.03233236,0.00019178,2]
[362063155,1747962642092,-985.03233236,0.00019178,2]
[362063156,1747962642101,-985.03233236,0.00019178,2]
[362063157,1747962642110,-985.03233236,0.00019178,2]
[362063158,1747962642120,-985.03233236,0.00019178,2]
[362063159,1747962642129,-985.03233236,0.00019178,2]
[362063160,1747962642138,-985.03233236,0.00019178,2]
[362063161,1747962642148,-985.03233236,0.00019178,2]
[362063162,1747962642157,-985.03233236,0.00019178,2]
[362063163,1747962642167,-985.03233236,0.00019178,2]
[362063164,1747962642176,-985.03233236,0.00019178,2]
[362063165,1747962642185,-985.03233236,0.00019178,2]
[362063166,1747962642195,-985.03233236,0.00019178,2]
[362063167,1747962642204,-985.03233236,0.00019178,2]
[362063168,1747962642214,-985.03233236,0.00019178,2]
[362063169,1747962642223,-985.03233233,0.00019178,2]
[362063170,1747962642233,-151.0,0.00019178,2]
[362063171,1747962642244,-151.0,0.00019178,2]
[362063172,1747962642254,-151.0,0.00019178,2]
[362063173,1747962642263,-499.14,0.00019192,2]
[362063174,1747962642273,-430.0,0.00019192,2]
[362063175,1747962642283,-430.0,0.00019192,2]
[362063176,1747962642292,-430.0,0.00019192,2]
[362063177,1747962642302,-538.87,0.00019192,2]
[362063178,1747962642315,-502.38,0.00019192,2]
[362063179,1747962642325,-430.0,0.00019192,2]
[362063180,1747962642335,-1277.28,0.00019192,2]
[362063181,1747962642345,-880.65,0.00019192,2]
[362063182,1747962642355,-467.56,0.00019192,2]
[362063183,1747962642364,-504.41,0.00019192,2]
[362063184,1747962642374,-526.75,0.00019192,2]
[362063185,1747962642384,-252.81550548,0.00019202,2]
[362063186,1747962642398,-480.0,0.00019249,2]
[362063187,1747962642410,-151.0,0.00019267,2]
[362063188,1747962642420,-430.0,0.00019294,2]
[362063189,1747962642430,-641.13,0.00019294,2]
[362063190,1747962642439,-430.0,0.00019294,2]
[362063191,1747962642448,-430.0,0.00019294,2]
[362063192,1747962642458,-430.0,0.00019294,2]
[362063193,1747962642467,-430.0,0.00019294,2]
[362063194,1747962642477,-430.0,0.00019294,2]
[362063195,1747962642486,-205.82,0.00019294,2]
[362063196,1747962642496,-1035.26,0.00019294,2]
[362063197,1747962642506,-430.0,0.00019294,2]
[362063198,1747962642515,-430.0,0.00019294,2]
[362063199,1747962642525,-430.0,0.00019295,2]
[362063200,1747962642535,-500.0,0.00019295,2]
[362063201,1747962642545,-207.4,0.00019308,2]
[362063202,1747962642555,-151.0,0.00019308,2]
[362063203,1747962642564,-1000.0,0.00019321,2]
[362063204,1747962642699,-500.0,0.00019341,2]
[362063205,1747962642709,-618.01932855,0.00019458,2]
[362063206,1747962642719,-500.0,0.00019458,2]
[362063207,1747962642729,-499.14,0.00019466,2]
[362063208,1747962642739,-430.0,0.00019466,2]
[362063209,1747962642750,-430.0,0.00019466,2]
[362063210,1747962642759,-430.0,0.00019466,2]
[362063211,1747962642768,-538.87,0.00019466,2]
[362063212,1747962642779,-502.38,0.00019466,2]
[362063213,1747962642788,-430.0,0.00019466,2]
[362063214,1747962642798,-1277.28,0.00019466,2]
[362063215,1747962642808,-880.65,0.00019466,2]
[362063216,1747962642818,-467.56,0.00019466,2]
[362063217,1747962642827,-504.41,0.00019466,2]
[362063218,1747962642837,-500.0,0.00019529,2]
[362063219,1747962642847,-151.0,0.00019542,2]
[362063220,1747962642856,-393.67815285,0.00019568,2]
[362063221,1747962642866,-641.13,0.00019568,2]
[362063222,1747962642876,-430.0,0.00019568,2]
[362063223,1747962642885,-430.0,0.00019568,2]
[362063224,1747962642895,-430.0,0.00019568,2]
[362063225,1747962642904,-430.0,0.00019568,2]
[362063226,1747962642914,-430.0,0.00019568,2]
[362063227,1747962642924,-1035.26,0.00019568,2]
[362063228,1747962642933,-430.0,0.00019568,2]
[362063230,1747962642943,-430.0,0.00019568,2]
[362063232,1747962642952,-430.0,0.00019569,2]
[362063234,1747962642962,-500.0,0.00019569,2]
[362063236,1747962642972,-151.0,0.000196,2]
[362063238,1747962642981,-1764.63979773,0.000196,2]
[362063240,1747962642990,-1764.63979763,0.000196,2]
[362063241,1747962642999,-1764.63979763,0.000196,2]
[362063244,1747962643009,-1764.63979763,0.000196,2]
[362063246,1747962643018,-1000.0,0.000196,2]
[362063248,1747962643029,-1000.0,0.00019621,2]
[362063250,1747962643039,-1000.0,0.00019621,2]
[362063252,1747962643048,-1000.0,0.00019621,2]
[362063254,1747962643057,-1000.0,0.00019621,2]
[362063256,1747962643067,-1000.0,0.00019621,2]
[362063258,1747962643076,-1000.0,0.00019621,2]
[362063260,1747962643086,-500.0,0.0001971,2]
[362063262,1747962643095,-500.0,0.0001971,2]
[362063264,1747962643104,-1000.0,0.00019721,2]
[362063266,1747962643114,-151.0,0.00019725,2]
[362063268,1747962643123,-151.0,0.00019725,2]
[362063270,1747962643132,-151.0,0.00019725,2]
[362063272,1747962643142,-151.0,0.00019725,2]
[362063274,1747962643152,-1764.63979763,0.00019728,2]
[362063276,1747962643162,-499.14,0.0001974,2]
[362063278,1747962643171,-430.0,0.0001974,2]
[362063281,1747962643181,-430.0,0.0001974,2]
[362063283,1747962643191,-430.0,0.0001974,2]
[362063285,1747962643200,-538.87,0.0001974,2]
[362063287,1747962643210,-502.38,0.0001974,2]
[362063289,1747962643219,-430.0,0.0001974,2]
[362063291,1747962643229,-1277.28,0.0001974,2]
[362063293,1747962643239,-880.65,0.0001974,2]
[362063295,1747962643248,-467.56,0.0001974,2]
[362063297,1747962643258,-504.41,0.0001974,2]
[362063299,1747962643267,-193.0,0.000198,5]
[362063301,1747962643277,-151.0,0.00019841,2]
[362063303,1747962643287,-178.299384,0.00019841,2]
[362063305,1747962643296,-178.299384,0.00019841,2]
[362063307,1747962643309,-151.0,0.00019841,2]
[362063309,1747962643319,-151.0,0.00019842,2]
[362063311,1747962643328,-641.13,0.00019842,2]
[362063313,1747962643338,-287.67,0.00019842,2]
[362063315,1747962643347,-430.0,0.00019842,2]
[362063317,1747962643356,-430.0,0.00019842,2]
[362063319,1747962643366,-430.0,0.00019842,2]
[362063321,1747962643375,-430.0,0.00019842,2]
[362063323,1747962643387,-151.0,0.00019842,2]
[362063325,1747962643397,-1035.26,0.00019842,2]
[362063327,1747962643406,-430.0,0.00019842,2]
[362063329,1747962643417,-430.0,0.00019842,2]
[362063331,1747962643427,-291.953956,0.00019842,2]
[362063333,1747962643436,-291.953956,0.00019842,2]
[362063335,1747962643446,-430.0,0.00019843,2]
[362063337,1747962643456,-500.0,0.00019843,2]
[362063339,1747962643466,-495.654225,0.00019867,2]
[362063341,1747962643476,-495.654225,0.00019867,2]
[362063343,1747962643485,-1500.0,0.00019868,2]
[362063345,1747962643495,-1764.63979763,0.00019934,2]
[362063347,1747962643504,-500.0,0.00019998,2]
[362063349,1747962643514,-155.0,0.0002,2]
[362063351,1747962643524,-499.14,0.00020014,2]
[362063354,1747962643534,-430.0,0.00020014,2]
[362063356,1747962643543,-430.0,0.00020014,2]
[362063358,1747962643553,-430.0,0.00020014,2]
[362063360,1747962643562,-538.87,0.00020014,2]
[362063362,1747962643572,-502.38,0.00020014,2]
[362063363,1747962643581,-430.0,0.00020014,2]
[362063366,1747962643591,-1277.28,0.00020014,2]
[362063368,1747962643601,-880.65,0.00020014,2]
[362063370,1747962643610,-467.56,0.00020014,2]
[362063372,1747962643619,-504.41,0.00020014,2]
[362063374,1747962643629,-500.0,0.00020025,2]
[362063376,1747962643638,-362.42423327,0.0002005,2]
[362063378,1747962643648,-500.0,0.0002005,2]
[362063379,1747962643657,-500.0,0.0002005,2]
[362063382,1747962643666,-500.0,0.0002005,2]
[362063384,1747962643675,-279.11873465,0.00020053,2]
[362063386,1747962643685,-349.4869454,0.00020082,2]
[362063388,1747962643694,-151.0,0.00020089,2]
[362063390,1747962643703,-641.13,0.00020116,2]
[362063392,1747962643712,-430.0,0.00020116,2]
[362063394,1747962643722,-430.0,0.00020116,2]
[362063396,1747962643731,-430.0,0.00020116,2]
[362063398,1747962643740,-430.0,0.00020116,2]
[362063400,1747962643749,-1035.26,0.00020116,2]
[362063402,1747962643758,-430.0,0.00020116,2]
[362063404,1747962643767,-236.61,0.00020116,2]
[362063405,1747962643777,-430.0,0.00020117,2]
[362063407,1747962643786,-500.0,0.00020117,2]
[362063409,1747962643796,-1764.63979763,0.00020141,2]
[362063411,1747962643805,-1087.399664,0.00020143,2]
[362063413,1747962643814,-1500.0,0.00020148,2]
[362063414,1747962643824,-1500.0,0.00020168,2]
[362063416,1747962643833,-1500.0,0.00020168,2]
[362063417,1747962643843,-1500.0,0.00020168,2]
[362063418,1747962643852,-1500.0,0.00020168,2]
[362063419,1747962643862,-1355.94181766,0.00020168,2]
[362063420,1747962643872,-1500.0,0.00020168,2]
[362063421,1747962643882,-190.390223,0.00020187,2]
[362063422,1747962643892,-2000.0,0.00020188,2]
[362063423,1747962643902,-1000.0,0.00020258,2]
[362063424,1747962643911,-151.0,0.00020268,2]
[362063425,1747962643921,-151.0,0.00020268,2]
[362063426,1747962643931,-151.0,0.00020268,2]
[362063427,1747962643940,-151.0,0.00020268,2]
[362063428,1747962643949,-151.0,0.00020268,2]
[362063429,1747962643959,-474.570536,0.00020268,2]
[362063430,1747962643969,-474.570536,0.00020268,2]
[362063431,1747962643978,-151.0,0.00020268,2]
[362063432,1747962643988,-1500.0,0.00020268,2]
[362063433,1747962643997,-2467.72,0.00020278,3]
[362063434,1747962644007,-1233.86,0.00020278,3]
[362063435,1747962644017,-616.92,0.00020278,3]
[362063436,1747962644027,-308.46,0.00020278,3]
[362063437,1747962644036,-499.14,0.00020288,2]
[362063438,1747962644046,-430.0,0.00020288,2]
[362063439,1747962644056,-430.0,0.00020288,2]
[362063441,1747962644066,-495.31,0.00020288,2]
[362063443,1747962644075,-538.87,0.00020288,2]
[362063444,1747962644085,-502.38,0.00020288,2]
[362063445,1747962644094,-430.0,0.00020288,2]
[362063446,1747962644103,-1277.28,0.00020288,2]
[362063447,1747962644113,-880.65,0.00020288,2]
[362063448,1747962644123,-467.56,0.00020288,2]
[362063449,1747962644132,-504.41,0.00020288,2]
[362063450,1747962644142,-12645.25887003,0.00020309,2]
[362063451,1747962644152,-422.78357425,0.00020309,2]
[362063452,1747962644164,-894.64583333,0.00020309,2]
[362063453,1747962644174,-160.0,0.00020309,2]
[362063454,1747962644183,-160.0,0.00020309,2]
[362063455,1747962644192,-160.0,0.00020309,2]
[362063456,1747962644203,-160.0,0.00020309,2]
[362063457,1747962644213,-212.4501065,0.00020309,2]
[362063458,1747962644223,-160.0,0.00020309,2]
[362063459,1747962644234,-160.0,0.00020309,2]
[362063460,1747962644243,-1764.63979763,0.00020348,3]
[362063461,1747962644253,-151.0,0.00020361,2]
[362063462,1747962644263,-151.0,0.00020361,2]
[362063463,1747962644272,-151.0,0.00020361,2]
[362063464,1747962644282,-151.0,0.00020361,2]
[362063465,1747962644292,-151.0,0.00020361,2]
[362063466,1747962644302,-178.299384,0.00020361,2]
[362063467,1747962644316,-178.299384,0.00020361,2]
[362063468,1747962644326,-222.717132,0.00020361,2]
[362063469,1747962644335,-151.0,0.00020365,2]
[362063470,1747962644345,-4935.44,0.0002038,3]
[362063471,1747962644356,-641.13,0.0002039,2]
[362063472,1747962644366,-430.0,0.0002039,2]
[362063473,1747962644376,-361.40576811,0.0002039,2]
[362063474,1747962644386,-430.0,0.0002039,2]
[362063475,1747962644396,-430.0,0.0002039,2]
[362063476,1747962644406,-1035.26,0.0002039,2]
[362063477,1747962644415,-430.0,0.0002039,2]
[362063478,1747962644425,-430.0,0.00020391,2]
[362063479,1747962644435,-500.0,0.00020391,2]
[362063480,1747962644444,-495.654225,0.00020391,2]
[362063481,1747962644453,-495.654225,0.00020391,2]
[362063482,1747962644463,-500.0,0.00020416,2]
[362063483,1747962644473,-151.0,0.00020436,2]
[362063484,1747962644483,-151.0,0.00020436,2]
[362063485,1747962644493,-151.0,0.00020436,2]
[362063486,1747962644502,-151.0,0.00020488,2]
[362063487,1747962644511,-291.953956,0.00020488,2]
[362063488,1747962644521,-291.953956,0.00020488,2]
[362063489,1747962644530,-151.0,0.00020538,2]
[362063490,1747962644540,-151.0,0.00020538,2]
[362063491,1747962644549,-155.0,0.00020548,2]
[362063492,1747962644559,-151.0,0.00020555,2]
[362063493,1747962644568,-151.0,0.00020555,2]
[362063494,1747962644577,-151.0,0.00020555,2]
[362063495,1747962644587,-151.0,0.00020555,2]
[362063496,1747962644596,-1764.63979763,0.00020555,3]
[362063497,1747962644606,-499.14,0.00020562,2]
[362063498,1747962644615,-430.0,0.00020562,2]
[362063499,1747962644624,-430.0,0.00020562,2]
[362063500,1747962644634,-538.87,0.00020562,2]
[362063501,1747962644643,-502.38,0.00020562,2]
[362063502,1747962644652,-430.0,0.00020562,2]
[362063503,1747962644662,-1277.28,0.00020562,2]
[362063504,1747962644671,-880.65,0.00020562,2]
[362063505,1747962644681,-467.56,0.00020562,2]
[362063506,1747962644690,-504.41,0.00020562,2]
[362063507,1747962644699,-55541.49546457,0.0002059,2]
[362063508,1747962644820,-430.0,0.00017549,2]
[362063509,1747962644830,-430.0,0.00017549,2]
[362063510,1747962644840,-430.0,0.00017823,2]
[362063511,1747962644849,-430.0,0.00018096,2]
[362063512,1747962644859,-430.0,0.0001837,2]
[362063513,1747962644869,-423.86,0.00018644,2]
[362063514,1747962644879,-2792.90125823,0.0002059,2]
[362063515,1747962644890,-374.03276725,0.0002059,2]
[362063516,1747962645008,-1463.06412754,0.0002059,2]
[362063529,1747962646630,-47.38042989,0.00017549,2]
[362063531,1747962747069,-4937.0,0.00017374,2]
[362063532,1747962875721,-300.0,0.000172,2]
[362063538,1747963201791,-24859.0,0.00016617,2]
[362063539,1747963268647,-4992.0,0.00016449,2]
[362063540,1747963399471,-167.8442207,0.00016285,2]
[362063541,1747963402063,-807.30391238,0.00016285,2]
[362063542,1747963403689,-192.96784787,0.00016285,2]
[362063543,1747963406315,-366.07788865,0.00016285,2]
[362063544,1747963431633,-177.38913363,0.00016285,2]
[362063545,1747963436019,-299.94833425,0.00016285,2]
[362063546,1747963438709,-335.04014938,0.00016285,2]
[362063547,1747963440737,-561.49731072,0.00016285,2]
[362063548,1747963442294,-247.00956722,0.00016285,2]
[362063549,1747963444938,-157.48362138,0.00016285,2]
[362063550,1747963450118,-297.66387268,0.00016285,2]
[362063551,1747963452828,-217.35516507,0.00016285,2]
[362063552,1747963454388,203.434076,0.00013699,2]
[362063553,1747963455587,-165.01443842,0.00016285,2]
[362063554,1747963458362,-243.10366515,0.00016285,2]
[362063557,1747963460910,-154.89059655,0.00016285,2]
[362063597,1747963587251,-1125.68308206,0.00016122,2]
[362063599,1747963589855,-279.29838224,0.00016122,2]
[362063601,1747963592909,-159.56083352,0.00016122,2]
[362063603,1747963593825,-3435.45770218,0.00016122,2]
[362063604,1747963593848,-6105.9843113,0.0001649,2]
[362063605,1747963593873,-41.0,0.00016617,2]
[362063606,1747963593898,-178.8130824,0.00016819,2]
[362063616,1747963608471,65.74490412,0.00016818,2]
[362063621,1747963662515,-4871.0,0.00016818,2]
[362063632,1747963720472,150.999999,0.0002,120]
[362063668,1747963832736,-192.6609853,0.0001631,2]
[362063669,1747963832746,-5000.0,0.00016646,2]
[362063670,1747963832756,-192.6609853,0.00016815,2]
[362063671,1747963832766,-63.25509588,0.00016818,2]
[362063672,1747963832775,-488.333074,0.00017531,2]
[362063673,1747963832786,-1000.27176025,0.00017533,2]
[362063674,1747963832795,-300.0,0.00017545,2]
[362063675,1747963832806,-698.0,0.00017545,2]
[362063677,1747963832817,-300.0,0.00017546,2]
[362063678,1747963832827,-500.0,0.00017546,2]
[362063679,1747963832837,-500.0,0.00017546,2]
[362063680,1747963832848,-500.0,0.00017546,2]
[362063681,1747963832858,-500.0,0.00017546,2]
[362063682,1747963832867,-500.0,0.00017546,2]
[362063683,1747963832877,-500.0,0.00017546,2]
[362063684,1747963832887,-500.0,0.00017546,2]
[362063685,1747963832896,-640.04980692,0.00017546,2]
[362063686,1747963832906,-500.0,0.00017546,2]
[362063687,1747963832915,-500.0,0.00017546,2]
[362063688,1747963832925,-500.0,0.00017546,2]
[362063689,1747963832935,-649.10283871,0.00017546,2]
[362063690,1747963832944,-500.0,0.00017546,2]
[362063691,1747963832954,-573.17034091,0.00017546,2]
[362063692,1747963832963,-500.0,0.00017546,2]
[362063693,1747963832973,-500.0,0.00017546,2]
[362063694,1747963832983,-543.92466787,0.00017546,2]
[362063695,1747963832992,-430.0,0.00017546,2]
[362063696,1747963833002,-430.0,0.00017546,2]
[362063697,1747963833012,-540.0,0.00017546,2]
[362063698,1747963833024,-430.0,0.00017546,2]
[362063699,1747963833034,-443.61,0.00017546,2]
[362063700,1747963833044,-450.0,0.00017546,2]
[362063701,1747963833054,-430.0,0.00017546,2]
[362063702,1747963833064,-430.0,0.00017546,2]
[362063703,1747963833074,-570.88772812,0.00017546,2]
[362063704,1747963833083,-430.0,0.00017546,2]
[362063705,1747963833093,-550.41,0.00017546,2]
[362063706,1747963833103,-430.0,0.00017546,2]
[362063707,1747963833112,-430.0,0.00017546,2]
[362063708,1747963833122,-430.0,0.00017546,2]
[362063709,1747963833132,-352.71810254,0.00017546,2]
[362063710,1747963833141,-429.78009424,0.00017546,2]
[362063711,1747963833151,-557.12654493,0.00017546,2]
[362063712,1747963833161,-439.72669146,0.00017546,2]
[362063713,1747963833171,-50000.0,0.00017546,2]
[362063714,1747963833180,-436.36259232,0.00017547,2]
[362063715,1747963833190,-555.24912084,0.00017547,2]
[362063716,1747963833200,-300.0,0.00017547,2]
[362063717,1747963833210,-450.0,0.00017547,2]
[362063718,1747963833220,-430.0,0.00017547,2]
[362063719,1747963833229,-430.0,0.00017547,2]
[362063720,1747963833239,-430.0,0.00017547,2]
[362063721,1747963833248,-475.57,0.00017547,2]
[362063722,1747963833259,-450.0,0.00017547,2]
[362063723,1747963833269,-450.0,0.00017547,2]
[362063724,1747963833279,-461.23,0.00017547,2]
[362063725,1747963833288,-430.0,0.00017547,2]
[362063726,1747963833297,-430.0,0.00017547,2]
[362063727,1747963833308,-430.0,0.00017547,2]
[362063728,1747963833317,-430.0,0.00017547,2]
[362063729,1747963833327,-430.0,0.00017547,2]
[362063730,1747963833337,-430.0,0.00017547,2]
[362063731,1747963833346,-487.96565403,0.00017547,2]
[362063732,1747963833356,-430.0,0.00017547,2]
[362063733,1747963833366,-430.0,0.00017547,2]
[362063734,1747963833375,-430.0,0.00017547,2]
[362063735,1747963833385,-430.0,0.00017547,2]
[362063736,1747963833394,-430.0,0.00017547,2]
[362063737,1747963833404,-430.0,0.00017547,2]
[362063738,1747963833414,-430.0,0.00017547,2]
[362063739,1747963833423,-400.0,0.00017547,2]
[362063740,1747963833433,-430.0,0.00017547,2]
[362063741,1747963833443,-430.0,0.00017547,2]
[362063742,1747963833452,-430.0,0.00017547,2]
[362063743,1747963833462,-430.0,0.00017547,2]
[362063744,1747963833472,-430.0,0.00017547,2]
[362063745,1747963833482,-430.0,0.00017547,2]
[362063746,1747963833491,-737.47,0.00017547,2]
[362063747,1747963833501,-430.0,0.00017547,2]
[362063748,1747963833510,-430.0,0.00017547,2]
[362063749,1747963833520,-430.0,0.00017547,2]
[362063750,1747963833530,-430.0,0.00017547,2]
[362063751,1747963833540,-430.0,0.00017547,2]
[362063752,1747963833550,-430.0,0.00017547,2]
[362063753,1747963833560,-430.0,0.00017547,2]
[362063754,1747963833570,-430.0,0.00017547,2]
[362063755,1747963833580,-430.0,0.00017547,2]
[362063756,1747963833590,-430.0,0.00017547,2]
[362063757,1747963833600,-430.0,0.00017547,2]
[362063758,1747963833609,-430.0,0.00017547,2]
[362063759,1747963833619,-430.0,0.00017547,2]
[362063760,1747963833629,-430.0,0.00017547,2]
[362063761,1747963833639,-794.36,0.00017547,2]
[362063762,1747963833652,-430.0,0.00017547,2]
[362063763,1747963833662,-430.0,0.00017547,2]
[362063764,1747963833671,-430.0,0.00017547,2]
[362063765,1747963833681,-236.61,0.00017547,2]
[362063766,1747963833691,-430.0,0.00017547,2]
[362063767,1747963833702,-430.0,0.00017547,2]
[362063768,1747963833712,-495.31,0.00017547,2]
[362063769,1747963833722,-430.0,0.00017547,2]
[362063770,1747963833732,-430.0,0.00017547,2]
[362063771,1747963833741,-450.0,0.00017547,2]
[362063772,1747963833752,-430.0,0.00017547,2]
[362063773,1747963833763,-430.0,0.00017547,2]
[362063774,1747963833773,-450.0,0.00017547,2]
[362063775,1747963833784,-450.0,0.00017547,2]
[362063776,1747963833794,-430.0,0.00017547,2]
[362063777,1747963833804,-774.25,0.00017547,2]
[362063778,1747963833814,-501.68566256,0.00017547,2]
[362063779,1747963833824,-219.88298646,0.00017547,2]
[362063780,1747963833835,-430.0,0.00017547,2]
[362063781,1747963833845,-430.0,0.00017547,2]
[362063782,1747963833855,-469.08232258,0.00017548,2]
[362063783,1747963833864,-430.0,0.00017548,2]
[362063784,1747963833874,-430.0,0.00017548,2]
[362063785,1747963833884,-157.94867918,0.00017548,2]
[362063786,1747963833893,-430.0,0.00017548,2]
[362063787,1747963833902,-430.0,0.00017548,2]
[362063788,1747963833921,-430.0,0.00017548,2]
[362063789,1747963833935,-430.0,0.00017548,2]
[362063790,1747963833945,-430.0,0.00017548,2]
[362063791,1747963833955,-470.0,0.00017548,2]
[362063792,1747963833965,-195.98513885,0.00017548,2]
[362063793,1747963833975,-430.0,0.00017548,2]
[362063794,1747963833985,-430.0,0.00017548,2]
[362063795,1747963833994,-420.0,0.00017548,2]
[362063796,1747963834005,-430.0,0.00017548,2]
[362063797,1747963834015,-430.0,0.00017548,2]
[362063798,1747963834024,-430.0,0.00017548,2]
[362063799,1747963834034,-430.0,0.00017548,2]
[362063800,1747963834044,-430.0,0.00017548,2]
[362063801,1747963834054,-430.0,0.00017548,2]
[362063802,1747963834064,-515.80339789,0.00017548,2]
[362063803,1747963834074,-430.0,0.00017548,2]
[362063804,1747963834084,-348.13939109,0.00017548,2]
[362063805,1747963834095,-430.0,0.00017548,2]
[362063806,1747963834105,-430.0,0.00017548,2]
[362063807,1747963834114,-450.0,0.00017548,2]
[362063808,1747963834123,-430.0,0.00017548,2]
[362063809,1747963834133,-430.0,0.00017548,2]
[362063810,1747963834144,-430.0,0.00017548,2]
[362063811,1747963834154,-430.0,0.00017548,2]
[362063812,1747963834165,-430.0,0.00017548,2]
[362063813,1747963834175,-430.0,0.00017548,2]
[362063814,1747963834186,-430.0,0.00017548,2]
[362063815,1747963834197,-430.0,0.00017548,2]
[362063816,1747963834207,-286.07585451,0.00017548,2]
[362063817,1747963834217,-301.64629966,0.00017548,2]
[362063818,1747963834227,-450.0,0.00017548,2]
[362063819,1747963834237,-450.0,0.00017548,2]
[362063820,1747963834247,-430.0,0.00017548,2]
[362063821,1747963834258,-430.0,0.00017548,2]
[362063822,1747963834268,-430.0,0.00017548,2]
[362063823,1747963834278,-500.0,0.00017548,2]
[362063824,1747963834288,-430.0,0.00017548,2]
[362063825,1747963834299,-430.0,0.00017548,2]
[362063826,1747963834309,-430.0,0.00017548,2]
[362063827,1747963834319,-430.0,0.00017548,2]
[362063828,1747963834330,-430.0,0.00017548,2]
[362063829,1747963834340,-300.0,0.00017548,2]
[362063830,1747963834350,-430.0,0.00017548,2]
[362063831,1747963834361,-430.0,0.00017548,2]
[362063832,1747963834371,-450.0,0.00017548,2]
[362063833,1747963834381,-430.0,0.0001782,2]
[362063834,1747963834392,-430.0,0.0001782,2]
[362063835,1747963834402,-443.61,0.0001782,2]
[362063836,1747963834412,-430.0,0.0001782,2]
[362063837,1747963834421,-430.0,0.0001782,2]
[362063838,1747963834432,-550.41,0.0001782,2]
[362063839,1747963834442,-430.0,0.0001782,2]
[362063840,1747963834452,-430.0,0.0001782,2]
[362063841,1747963834462,-430.0,0.00017821,2]
[362063842,1747963834472,-430.0,0.00017821,2]
[362063843,1747963834483,-450.0,0.00017821,2]
[362063844,1747963834493,-450.0,0.00017821,2]
[362063845,1747963834503,-430.0,0.00017821,2]
[362063846,1747963834514,-430.0,0.00017821,2]
[362063847,1747963834524,-737.47,0.00017821,2]
[362063848,1747963834539,-430.0,0.00017821,2]
[362063849,1747963834550,-430.0,0.00017821,2]
[362063850,1747963834561,-430.0,0.00017821,2]
[362063851,1747963834571,-430.0,0.00017821,2]
[362063852,1747963834581,-430.0,0.00017821,2]
[362063853,1747963834591,-430.0,0.00017821,2]
[362063854,1747963834601,-430.0,0.00017821,2]
[362063855,1747963834611,-794.36,0.00017821,2]
[362063856,1747963834620,-289.85629366,0.00017821,2]
[362063857,1747963834630,-430.0,0.00017821,2]
[362063858,1747963834640,-430.0,0.00017821,2]
[362063859,1747963834652,-558.28,0.00017821,2]
[362063860,1747963834663,-774.25,0.00017821,2]
[362063861,1747963834675,-447.81678987,0.00017821,2]
[362063862,1747963834881,-430.0,0.00017821,2]
[362063863,1747963834893,-488.55976635,0.00017822,2]
[362063864,1747963834903,-430.0,0.00017822,2]
[362063865,1747963834912,-450.0,0.00017822,2]
[362063866,1747963834923,-430.0,0.00017822,2]
[362063867,1747963834933,-500.0,0.00017822,2]